Workbook

Sheet MainSheet
B1: Center Pivot Catch Can Evaluation Spreadsheet
C2: Test details
C3: WSU Othello
O5: Max Catch | P5: =MAX(P7:P157) -> 0.4761904762 | X5: =OFFSET(W7,3,0) -> 26
C6: mL to inches conversion | F6: 420 | O6: 1/4 Num Cans | P6: =ROUND(COUNTIF(D8:D157,">0")/4,0) -> 3
B7: Span | C7: Catch can number | D7: Amount collected in can (mL) | F7: Amount in Can in INCHES | H7: Weighted catch | J7: Sum of all weighted catches | K7: =IF(K8>0,SUM(H8:H157),"") -> 51.06666667 | P7: mm in can | Q7: Can No. | R7: Weighted Catch | S7: Sorted mm in Can | T7: Search Range | U7: Can No. | V7: Weighted Catch | W7: Sum Can Nos. | X7: Sum Weighted Catches | Y7: Average of All Cans | Z7: Average of Lowest Quarter | AA7: rj*|yj-ya| for CU
C8: 1 | D8: x | F8: =IF(ISNUMBER(D8),D8/$F$6," ") ->  | H8: =IF(F8<>" ",C8*F8," ") ->  | J8: Sum of all used can numbers | K8: =SUMIF(F8:F157,"<> ",C8:C157) -> 121 | O8: =IF(ISNUMBER(D8),C8,NA()) ->  | P8: =F8 ->  | Q8: =C8 -> 1 | R8: =H8 ->  | S8: =SMALL(P$8:P$157,Q8) -> 0.3571428571 | T8: ="P"&(VLOOKUP(S8,P$8:R$157,2,FALSE)+8)&":R157" -> P14:R157 | U8: =VLOOKUP(S8,P$8:R$157,2,FALSE) -> 6 | V8: =VLOOKUP(S8,P$8:R$157,3,FALSE) -> 2.142857143 | W8: =SUM(U$8:U8) -> 6 | X8: =SUM(V$8:V8) -> 2.142857143 | Y8: =$K$9 -> 0.4220385675 | Z8: =$K$13 -> 0.3710622711 | AA8: =IF(ISNUMBER(D8),Q8*ABS(F8-$K$9),0) -> 0
C9: =C8+1 -> 2 | D9: x | H9: =IF(F9<>" ",C9*F9," ") ->  | J9: Average catch (in) | K9: =IF(ISERROR(K7/K8),"",K7/K8) -> 0.4220385675 | O9: =IF(ISNUMBER(D9),C9,NA()) ->  | P9: =F9 ->  | Q9: =C9 -> 2 | R9: =H9 ->  | S9: =SMALL(P$8:P$157,Q9) -> 0.3666666667 | T9: ="P"&(IF(S9=S8,VLOOKUP(S9,INDIRECT(T8),2,FALSE),VLOOKUP(S9,P$8:Q$157,2,FALSE))+8)&":R157" -> P16:R157 | U9: =IF(S9=S8,VLOOKUP(S9,INDIRECT(T8),2,FALSE),VLOOKUP(S9,P$8:R$157,2,FALSE)) -> 8 | V9: =IF(S9=S8,VLOOKUP(S9,INDIRECT(T8),3,FALSE),VLOOKUP(S9,P$8:R$157,3,FALSE)) -> 2.933333333 | W9: =SUM(U$8:U9) -> 14 | X9: =SUM(V$8:V9) -> 5.076190476 | Y9: =$K$9 -> 0.4220385675 | Z9: =$K$13 -> 0.3710622711 | AA9: =IF(ISNUMBER(D9),Q9*ABS(F9-$K$9),0) -> 0
C10: =C9+1 -> 3 | D10: x | Q10: 3 | S10: =SMALL(P$8:P$157,Q10) -> 0.380952381 | T10: ="P"&(IF(S10=S9,VLOOKUP(S10,INDIRECT(T9),2,FALSE),VLOOKUP(S10,P$8:Q$157,2,FALSE))+8)&":R157" -> P20:R157 | U10: =IF(S10=S9,VLOOKUP(S10,INDIRECT(T9),2,FALSE),VLOOKUP(S10,P$8:R$157,2,FALSE)) -> 12 | V10: =IF(S10=S9,VLOOKUP(S10,INDIRECT(T9),3,FALSE),VLOOKUP(S10,P$8:R$157,3,FALSE)) -> 4.571428571 | W10: =SUM(U$8:U10) -> 26 | X10: =SUM(V$8:V10) -> 9.647619048 | Y10: 0.4220385675 | Z10: 0.3710622711 | AA10: 0
C11: 4 | D11: x | J11: Sum of lowest quarter weighted catches | K11: =IF(COUNTIF(D8:D157,">0")<5,"",OFFSET(X7,P6,0)) -> 9.647619048 | Q11: 4 | S11: 0.3928571429 | T11: P24:R157 | U11: =IF(S11=S10,VLOOKUP(S11,INDIRECT(T10),2,FALSE),VLOOKUP(S11,P$8:R$157,2,FALSE)) -> 16 | V11: =IF(S11=S10,VLOOKUP(S11,INDIRECT(T10),3,FALSE),VLOOKUP(S11,P$8:R$157,3,FALSE)) -> 6.285714286 | W11: =SUM(U$8:U11) -> 42 | X11: =SUM(V$8:V11) -> 15.93333333 | Y11: 0.4220385675 | Z11: 0.3710622711 | AA11: 0
C12: 5 | D12: x | J12: Sum of lowest quarter used can numbers | K12: =IF(COUNTIF(D8:D157,">0")<5,"",OFFSET(W7,P6,0)) -> 26 | Q12: 5 | S12: 0.4119047619 | T12: P23:R157 | U12: 15 | V12: 6.178571429 | W12: =SUM(U$8:U12) -> 57 | X12: =SUM(V$8:V12) -> 22.11190476 | Y12: 0.4220385675 | Z12: 0.3710622711 | AA12: 0
C13: 6 | D13: 150 | F13: 0.3571428571 | H13: 2.142857143 | J13: Lowest quarter average catch (in) | K13: =IF(COUNTIF(D8:D157,">0")<5,"",IF(P158=Q158,K11/K12," ")) -> 0.3710622711 | O13: 6 | P13: 0.3571428571 | Q13: 6 | R13: 2.142857143 | S13: 0.4261904762 | T13: P19:R157 | U13: 11 | V13: 4.688095238 | W13: =SUM(U$8:U13) -> 68 | X13: =SUM(V$8:V13) -> 26.8 | Y13: 0.4220385675 | Z13: 0.3710622711 | AA13: 0.3893742621
C14: 7 | D14: 200 | F14: 0.4761904762 | H14: 3.333333333 | J14: Distribution Uniformity - DUlq | K14: =IF(COUNTIF(D8:D157,">0")<5,"",IF(P158=Q158,K13/K9," ")) -> 0.8792141279 | O14: 7 | P14: 0.4761904762 | Q14: 7 | R14: 3.333333333 | S14: 0.4404761905 | T14: P18:R157 | U14: 10 | V14: 4.404761905 | W14: =SUM(U$8:U14) -> 78 | X14: =SUM(V$8:V14) -> 31.2047619 | Y14: 0.4220385675 | Z14: 0.3710622711 | AA14: 0.3790633609
C15: 8 | D15: 154 | F15: 0.3666666667 | H15: 2.933333333 | O15: 8 | P15: 0.3666666667 | Q15: 8 | R15: 2.933333333 | S15: 0.45 | T15: P22:R157 | U15: 14 | V15: 6.3 | W15: =SUM(U$8:U15) -> 92 | X15: =SUM(V$8:V15) -> 37.5047619 | Y15: 0.4220385675 | Z15: 0.3710622711 | AA15: 0.4429752066
C16: 9 | D16: 200 | F16: 0.4761904762 | H16: 4.285714286 | J16: Sum of absolute value of diff from avg catch | K16: =IF(COUNTIF(D8:D157,">0")<5,"",IF(P158=Q158,SUM(AA8:AA157)," ")) -> 3.88858717 | O16: 9 | P16: 0.4761904762 | Q16: 9 | R16: 4.285714286 | S16: 0.4571428571 | T16: P21:R157 | U16: 13 | V16: 5.942857143 | W16: =SUM(U$8:U16) -> 105 | X16: =SUM(V$8:V16) -> 43.44761905 | Y16: 0.4220385675 | Z16: 0.3710622711 | AA16: 0.4873671783
C17: 10 | D17: 185 | F17: 0.4404761905 | H17: 4.404761905 | J17: Christiansen Uniformity - CU | K17: =IF(COUNTIF(D8:D157,">0")<5,"",IF(P158=Q158,1-K16/K7," ")) -> 0.9238527317 | O17: 10 | P17: 0.4404761905 | Q17: 10 | R17: 4.404761905 | S17: 0.4761904762 | T17: P15:R157 | U17: 7 | V17: 3.333333333 | W17: =SUM(U$8:U17) -> 112 | X17: =SUM(V$8:V17) -> 46.78095238 | Y17: 0.4220385675 | Z17: 0.3710622711 | AA17: 0.1843762298
C18: 11 | D18: 179 | F18: 0.4261904762 | H18: 4.688095238 | O18: 11 | P18: 0.4261904762 | Q18: 11 | R18: 4.688095238 | S18: 0.4761904762 | T18: P17:R157 | U18: 9 | V18: 4.285714286 | W18: =SUM(U$8:U18) -> 121 | X18: =SUM(V$8:V18) -> 51.06666667 | Y18: 0.4220385675 | Z18: 0.3710622711 | AA18: 0.04567099567
C19: 12 | D19: 160 | F19: 0.380952381 | H19: 4.571428571 | O19: 12 | P19: 0.380952381 | Q19: 12 | R19: 4.571428571 | W19: =SUM(U$8:U19) ->  | X19: =SUM(V$8:V19) ->  | Y19: 0.4220385675 | Z19: 0.3710622711 | AA19: 0.4930342385
C20: 13 | D20: 192 | F20: 0.4571428571 | H20: 5.942857143 | O20: 13 | P20: 0.4571428571 | Q20: 13 | R20: 5.942857143 | W20: =SUM(U$8:U20) ->  | X20: =SUM(V$8:V20) ->  | Y20: 0.4220385675 | Z20: 0.3710622711 | AA20: 0.4563557654
C21: 14 | D21: 189 | F21: 0.45 | H21: 6.3 | O21: 14 | P21: 0.45 | Q21: 14 | R21: 6.3 | W21: =SUM(U$8:U21) ->  | X21: =SUM(V$8:V21) ->  | Y21: 0.4220385675 | Z21: 0.3710622711 | AA21: 0.3914600551
C22: 15 | D22: 173 | F22: 0.4119047619 | H22: 6.178571429 | O22: 15 | P22: 0.4119047619 | Q22: 15 | R22: 6.178571429 | W22: =SUM(U$8:U22) ->  | X22: =SUM(V$8:V22) ->  | Y22: 0.4220385675 | Z22: 0.3710622711 | AA22: 0.1520070838
C23: 16 | D23: 165 | F23: 0.3928571429 | H23: 6.285714286 | O23: 16 | P23: 0.3928571429 | Q23: 16 | R23: 6.285714286 | W23: =SUM(U$8:U23) ->  | X23: =SUM(V$8:V23) ->  | Y23: 0.4220385675 | Z23: 0.3710622711 | AA23: 0.4669027942
C24: 17 | D24: x | Q24: 17 | W24: =SUM(U$8:U24) ->  | X24: =SUM(V$8:V24) ->  | Y24: 0.4220385675 | Z24: 0.3710622711 | AA24: 0
C25: 18 | D25: x | Q25: 18 | W25: =SUM(U$8:U25) ->  | X25: =SUM(V$8:V25) ->  | Y25: 0.4220385675 | Z25: 0.3710622711 | AA25: 0
C26: 19 | D26: x | Q26: 19 | W26: =SUM(U$8:U26) ->  | X26: =SUM(V$8:V26) ->  | Y26: 0.4220385675 | Z26: 0.3710622711 | AA26: 0
C27: 20 | D27: x | Q27: 20 | W27: =SUM(U$8:U27) ->  | X27: =SUM(V$8:V27) ->  | Y27: 0.4220385675 | Z27: 0.3710622711 | AA27: 0
C28: 21 | D28: x | Q28: 21 | W28: =SUM(U$8:U28) ->  | X28: =SUM(V$8:V28) ->  | Y28: 0.4220385675 | Z28: 0.3710622711 | AA28: 0
C29: 22 | D29: x | Q29: 22 | W29: =SUM(U$8:U29) ->  | X29: =SUM(V$8:V29) ->  | Y29: 0.4220385675 | Z29: 0.3710622711 | AA29: 0
C30: 23 | D30: x | Q30: 23 | T30: ="P"&(IF(S30=S29,VLOOKUP(S30,INDIRECT(T29),2,FALSE),VLOOKUP(S30,P$8:Q$157,2,FALSE))+8)&":R157" ->  | W30: =SUM(U$8:U30) ->  | X30: =SUM(V$8:V30) ->  | Y30: 0.4220385675 | Z30: 0.3710622711 | AA30: 0
C31: 24 | D31: x | Q31: 24 | W31: =SUM(U$8:U31) ->  | X31: =SUM(V$8:V31) ->  | Y31: 0.4220385675 | Z31: 0.3710622711 | AA31: 0
C32: 25 | D32: x | Q32: 25 | W32: =SUM(U$8:U32) ->  | X32: =SUM(V$8:V32) ->  | Y32: 0.4220385675 | Z32: 0.3710622711 | AA32: 0
C33: 26 | D33: x | Q33: 26 | W33: =SUM(U$8:U33) ->  | X33: =SUM(V$8:V33) ->  | Y33: 0.4220385675 | Z33: 0.3710622711 | AA33: 0
C34: 27 | D34: x | Q34: 27 | W34: =SUM(U$8:U34) ->  | X34: =SUM(V$8:V34) ->  | Y34: 0.4220385675 | Z34: 0.3710622711 | AA34: 0
C35: 28 | D35: x | Q35: 28 | W35: =SUM(U$8:U35) ->  | X35: =SUM(V$8:V35) ->  | Y35: 0.4220385675 | Z35: 0.3710622711 | AA35: 0
C36: 29 | D36: x | Q36: 29 | W36: =SUM(U$8:U36) ->  | X36: =SUM(V$8:V36) ->  | Y36: 0.4220385675 | Z36: 0.3710622711 | AA36: 0
C37: 30 | D37: x | Q37: 30 | W37: =SUM(U$8:U37) ->  | X37: =SUM(V$8:V37) ->  | Y37: 0.4220385675 | Z37: 0.3710622711 | AA37: 0
C38: 31 | D38: x | Q38: 31 | S38: =SMALL(P$8:P$157,Q38) ->  | W38: =SUM(U$8:U38) ->  | X38: =SUM(V$8:V38) ->  | Y38: 0.4220385675 | Z38: 0.3710622711 | AA38: 0
C39: 32 | D39: x | H39: =IF(F39<>" ",C39*F39," ") ->  | O39: =IF(ISNUMBER(D39),C39,NA()) ->  | P39: =F39 ->  | Q39: 32 | W39: =SUM(U$8:U39) ->  | X39: =SUM(V$8:V39) ->  | Y39: 0.4220385675 | Z39: 0.3710622711 | AA39: 0
C40: 33 | D40: x | E40: 90 | Q40: 33 | W40: =SUM(U$8:U40) ->  | X40: =SUM(V$8:V40) ->  | Y40: 0.4220385675 | Z40: 0.3710622711 | AA40: 0
C41: 34 | D41: x | E41: 45 | Q41: 34 | W41: =SUM(U$8:U41) ->  | X41: =SUM(V$8:V41) ->  | Y41: 0.4220385675 | Z41: 0.3710622711 | AA41: 0
C42: 35 | D42: x | E42: 94 | Q42: 35 | W42: =SUM(U$8:U42) ->  | X42: =SUM(V$8:V42) ->  | Y42: 0.4220385675 | Z42: 0.3710622711 | AA42: 0
C43: 36 | D43: x | E43: 76 | Q43: 36 | W43: =SUM(U$8:U43) ->  | X43: =SUM(V$8:V43) ->  | Y43: 0.4220385675 | Z43: 0.3710622711 | AA43: 0
C44: 37 | D44: x | Q44: 37 | W44: =SUM(U$8:U44) ->  | X44: =SUM(V$8:V44) ->  | Y44: 0.4220385675 | Z44: 0.3710622711 | AA44: 0
C45: 38 | D45: x | Q45: 38 | W45: =SUM(U$8:U45) ->  | X45: =SUM(V$8:V45) ->  | Y45: 0.4220385675 | Z45: 0.3710622711 | AA45: 0
C46: 39 | D46: x | Q46: 39 | W46: =SUM(U$8:U46) ->  | X46: =SUM(V$8:V46) ->  | Y46: 0.4220385675 | Z46: 0.3710622711 | AA46: 0
C47: 40 | D47: x | Q47: 40 | W47: =SUM(U$8:U47) ->  | X47: =SUM(V$8:V47) ->  | Y47: 0.4220385675 | Z47: 0.3710622711 | AA47: 0
C48: 41 | D48: x | Q48: 41 | W48: =SUM(U$8:U48) ->  | X48: =SUM(V$8:V48) ->  | Y48: 0.4220385675 | Z48: 0.3710622711 | AA48: 0
C49: 42 | D49: x | Q49: 42 | W49: =SUM(U$8:U49) ->  | X49: =SUM(V$8:V49) ->  | Y49: 0.4220385675 | Z49: 0.3710622711 | AA49: 0
C50: 43 | D50: x | Q50: 43 | W50: =SUM(U$8:U50) ->  | X50: =SUM(V$8:V50) ->  | Y50: 0.4220385675 | Z50: 0.3710622711 | AA50: 0
C51: 44 | D51: x | Q51: 44 | W51: =SUM(U$8:U51) ->  | X51: =SUM(V$8:V51) ->  | Y51: 0.4220385675 | Z51: 0.3710622711 | AA51: 0
C52: 45 | D52: x | Q52: 45 | W52: =SUM(U$8:U52) ->  | X52: =SUM(V$8:V52) ->  | Y52: 0.4220385675 | Z52: 0.3710622711 | AA52: 0
C53: 46 | D53: x | Q53: 46 | W53: =SUM(U$8:U53) ->  | X53: =SUM(V$8:V53) ->  | Y53: 0.4220385675 | Z53: 0.3710622711 | AA53: 0
C54: 47 | D54: x | Q54: 47 | W54: =SUM(U$8:U54) ->  | X54: =SUM(V$8:V54) ->  | Y54: 0.4220385675 | Z54: 0.3710622711 | AA54: 0
C55: 48 | D55: x | E55: =E54+1 -> 1 | G55: =G54+1 -> 1 | Q55: 48 | W55: =SUM(U$8:U55) ->  | X55: =SUM(V$8:V55) ->  | Y55: 0.4220385675 | Z55: 0.3710622711 | AA55: 0
C56: 49 | D56: x | E56: =E55+1 -> 2 | G56: =G55+1 -> 2 | Q56: 49 | W56: =SUM(U$8:U56) ->  | X56: =SUM(V$8:V56) ->  | Y56: 0.4220385675 | Z56: 0.3710622711 | AA56: 0
C57: 50 | D57: x | E57: 3 | G57: 3 | Q57: 50 | W57: =SUM(U$8:U57) ->  | X57: =SUM(V$8:V57) ->  | Y57: 0.4220385675 | Z57: 0.3710622711 | AA57: 0
C58: 51 | D58: x | E58: 4 | G58: 4 | Q58: 51 | W58: =SUM(U$8:U58) ->  | X58: =SUM(V$8:V58) ->  | Y58: 0.4220385675 | Z58: 0.3710622711 | AA58: 0
C59: 52 | D59: x | E59: 5 | G59: 5 | Q59: 52 | W59: =SUM(U$8:U59) ->  | X59: =SUM(V$8:V59) ->  | Y59: 0.4220385675 | Z59: 0.3710622711 | AA59: 0
C60: 53 | D60: x | E60: 6 | G60: 6 | Q60: 53 | W60: =SUM(U$8:U60) ->  | X60: =SUM(V$8:V60) ->  | Y60: 0.4220385675 | Z60: 0.3710622711 | AA60: 0
C61: 54 | D61: x | E61: 7 | G61: 7 | Q61: 54 | W61: =SUM(U$8:U61) ->  | X61: =SUM(V$8:V61) ->  | Y61: 0.4220385675 | Z61: 0.3710622711 | AA61: 0
C62: 55 | D62: x | E62: 8 | G62: 8 | Q62: 55 | W62: =SUM(U$8:U62) ->  | X62: =SUM(V$8:V62) ->  | Y62: 0.4220385675 | Z62: 0.3710622711 | AA62: 0
C63: 56 | D63: x | E63: 9 | G63: 9 | Q63: 56 | W63: =SUM(U$8:U63) ->  | X63: =SUM(V$8:V63) ->  | Y63: 0.4220385675 | Z63: 0.3710622711 | AA63: 0
C64: 57 | D64: x | E64: 10 | G64: 10 | Q64: 57 | W64: =SUM(U$8:U64) ->  | X64: =SUM(V$8:V64) ->  | Y64: 0.4220385675 | Z64: 0.3710622711 | AA64: 0
C65: 58 | D65: x | E65: 11 | G65: 11 | Q65: 58 | W65: =SUM(U$8:U65) ->  | X65: =SUM(V$8:V65) ->  | Y65: 0.4220385675 | Z65: 0.3710622711 | AA65: 0
C66: 59 | D66: x | E66: 12 | G66: 12 | Q66: 59 | W66: =SUM(U$8:U66) ->  | X66: =SUM(V$8:V66) ->  | Y66: 0.4220385675 | Z66: 0.3710622711 | AA66: 0
C67: 60 | D67: x | E67: 13 | G67: 13 | Q67: 60 | W67: =SUM(U$8:U67) ->  | X67: =SUM(V$8:V67) ->  | Y67: 0.4220385675 | Z67: 0.3710622711 | AA67: 0
C68: 61 | D68: x | E68: 14 | G68: 14 | Q68: 61 | W68: =SUM(U$8:U68) ->  | X68: =SUM(V$8:V68) ->  | Y68: 0.4220385675 | Z68: 0.3710622711 | AA68: 0
C69: 62 | D69: x | E69: 15 | G69: 15 | Q69: 62 | W69: =SUM(U$8:U69) ->  | X69: =SUM(V$8:V69) ->  | Y69: 0.4220385675 | Z69: 0.3710622711 | AA69: 0
C70: 63 | D70: x | E70: 16 | G70: 16 | Q70: 63 | W70: =SUM(U$8:U70) ->  | X70: =SUM(V$8:V70) ->  | Y70: 0.4220385675 | Z70: 0.3710622711 | AA70: 0
C71: 64 | D71: x | E71: 17 | G71: 17 | Q71: 64 | W71: =SUM(U$8:U71) ->  | X71: =SUM(V$8:V71) ->  | Y71: 0.4220385675 | Z71: 0.3710622711 | AA71: 0
C72: 65 | D72: x | E72: 18 | G72: 18 | Q72: 65 | W72: =SUM(U$8:U72) ->  | X72: =SUM(V$8:V72) ->  | Y72: 0.4220385675 | Z72: 0.3710622711 | AA72: 0
C73: 66 | D73: x | E73: 19 | F73: =IF(ISNUMBER(D73),D73/$F$6," ") ->  | G73: 19 | H73: =IF(F73<>" ",C73*F73," ") ->  | O73: =IF(ISNUMBER(D73),C73,NA()) ->  | P73: =F73 ->  | Q73: =C73 -> 66 | R73: =H73 ->  | W73: =SUM(U$8:U73) ->  | X73: =SUM(V$8:V73) ->  | Y73: =$K$9 -> 0.4220385675 | Z73: =$K$13 -> 0.3710622711 | AA73: =IF(ISNUMBER(D73),Q73*ABS(F73-$K$9),0) -> 0
C74: =C73+1 -> 67 | D74: x | E74: 20 | G74: 20 | Q74: 67 | S74: =SMALL(P$8:P$157,Q74) ->  | T74: ="P"&(IF(S74=S73,VLOOKUP(S74,INDIRECT(T73),2,FALSE),VLOOKUP(S74,P$8:Q$157,2,FALSE))+8)&":R157" ->  | W74: =SUM(U$8:U74) ->  | X74: =SUM(V$8:V74) ->  | Y74: 0.4220385675 | Z74: 0.3710622711 | AA74: 0
C75: 68 | D75: x | E75: 21 | G75: 21 | Q75: 68 | U75: =IF(S75=S74,VLOOKUP(S75,INDIRECT(T74),2,FALSE),VLOOKUP(S75,P$8:R$157,2,FALSE)) ->  | V75: =IF(S75=S74,VLOOKUP(S75,INDIRECT(T74),3,FALSE),VLOOKUP(S75,P$8:R$157,3,FALSE)) ->  | W75: =SUM(U$8:U75) ->  | X75: =SUM(V$8:V75) ->  | Y75: 0.4220385675 | Z75: 0.3710622711 | AA75: 0
C76: 69 | D76: x | E76: 22 | G76: 22 | Q76: 69 | W76: =SUM(U$8:U76) ->  | X76: =SUM(V$8:V76) ->  | Y76: 0.4220385675 | Z76: 0.3710622711 | AA76: 0
C77: 70 | D77: x | E77: 23 | G77: 23 | Q77: 70 | W77: =SUM(U$8:U77) ->  | X77: =SUM(V$8:V77) ->  | Y77: 0.4220385675 | Z77: 0.3710622711 | AA77: 0
C78: 71 | D78: x | E78: 24 | G78: 24 | Q78: 71 | W78: =SUM(U$8:U78) ->  | X78: =SUM(V$8:V78) ->  | Y78: 0.4220385675 | Z78: 0.3710622711 | AA78: 0
C79: 72 | D79: x | E79: 25 | G79: 25 | Q79: 72 | W79: =SUM(U$8:U79) ->  | X79: =SUM(V$8:V79) ->  | Y79: 0.4220385675 | Z79: 0.3710622711 | AA79: 0
C80: 73 | D80: x | E80: 26 | G80: 26 | Q80: 73 | W80: =SUM(U$8:U80) ->  | X80: =SUM(V$8:V80) ->  | Y80: 0.4220385675 | Z80: 0.3710622711 | AA80: 0
C81: 74 | D81: x | E81: 27 | G81: 27 | Q81: 74 | W81: =SUM(U$8:U81) ->  | X81: =SUM(V$8:V81) ->  | Y81: 0.4220385675 | Z81: 0.3710622711 | AA81: 0
C82: 75 | D82: x | E82: 28 | G82: 28 | Q82: 75 | W82: =SUM(U$8:U82) ->  | X82: =SUM(V$8:V82) ->  | Y82: 0.4220385675 | Z82: 0.3710622711 | AA82: 0
C83: 76 | D83: x | E83: 29 | G83: 29 | Q83: 76 | W83: =SUM(U$8:U83) ->  | X83: =SUM(V$8:V83) ->  | Y83: 0.4220385675 | Z83: 0.3710622711 | AA83: 0
C84: 77 | D84: x | E84: 30 | G84: 30 | Q84: 77 | W84: =SUM(U$8:U84) ->  | X84: =SUM(V$8:V84) ->  | Y84: 0.4220385675 | Z84: 0.3710622711 | AA84: 0
C85: 78 | D85: x | E85: 31 | G85: 31 | Q85: 78 | W85: =SUM(U$8:U85) ->  | X85: =SUM(V$8:V85) ->  | Y85: 0.4220385675 | Z85: 0.3710622711 | AA85: 0
C86: 79 | D86: x | E86: 32 | G86: 32 | Q86: 79 | W86: =SUM(U$8:U86) ->  | X86: =SUM(V$8:V86) ->  | Y86: 0.4220385675 | Z86: 0.3710622711 | AA86: 0
C87: 80 | D87: x | E87: 33 | G87: 33 | Q87: 80 | W87: =SUM(U$8:U87) ->  | X87: =SUM(V$8:V87) ->  | Y87: 0.4220385675 | Z87: 0.3710622711 | AA87: 0
C88: 81 | D88: x | E88: 34 | G88: 34 | Q88: 81 | W88: =SUM(U$8:U88) ->  | X88: =SUM(V$8:V88) ->  | Y88: 0.4220385675 | Z88: 0.3710622711 | AA88: 0
C89: 82 | D89: x | E89: 35 | G89: 35 | Q89: 82 | W89: =SUM(U$8:U89) ->  | X89: =SUM(V$8:V89) ->  | Y89: 0.4220385675 | Z89: 0.3710622711 | AA89: 0
C90: 83 | D90: x | E90: 36 | G90: 36 | Q90: 83 | W90: =SUM(U$8:U90) ->  | X90: =SUM(V$8:V90) ->  | Y90: 0.4220385675 | Z90: 0.3710622711 | AA90: 0
C91: 84 | D91: x | E91: 37 | G91: 37 | Q91: 84 | W91: =SUM(U$8:U91) ->  | X91: =SUM(V$8:V91) ->  | Y91: 0.4220385675 | Z91: 0.3710622711 | AA91: 0
C92: 85 | D92: x | E92: 38 | G92: 38 | Q92: 85 | W92: =SUM(U$8:U92) ->  | X92: =SUM(V$8:V92) ->  | Y92: 0.4220385675 | Z92: 0.3710622711 | AA92: 0
C93: 86 | D93: x | E93: 39 | G93: 39 | Q93: 86 | W93: =SUM(U$8:U93) ->  | X93: =SUM(V$8:V93) ->  | Y93: 0.4220385675 | Z93: 0.3710622711 | AA93: 0
C94: 87 | D94: x | E94: 40 | G94: 40 | Q94: 87 | W94: =SUM(U$8:U94) ->  | X94: =SUM(V$8:V94) ->  | Y94: 0.4220385675 | Z94: 0.3710622711 | AA94: 0
C95: 88 | D95: x | E95: 41 | G95: 41 | Q95: 88 | W95: =SUM(U$8:U95) ->  | X95: =SUM(V$8:V95) ->  | Y95: 0.4220385675 | Z95: 0.3710622711 | AA95: 0
C96: 89 | D96: x | E96: 42 | G96: 42 | Q96: 89 | W96: =SUM(U$8:U96) ->  | X96: =SUM(V$8:V96) ->  | Y96: 0.4220385675 | Z96: 0.3710622711 | AA96: 0
C97: 90 | D97: x | E97: 43 | G97: 43 | Q97: 90 | W97: =SUM(U$8:U97) ->  | X97: =SUM(V$8:V97) ->  | Y97: 0.4220385675 | Z97: 0.3710622711 | AA97: 0
C98: 91 | D98: x | E98: 44 | G98: 44 | Q98: 91 | W98: =SUM(U$8:U98) ->  | X98: =SUM(V$8:V98) ->  | Y98: 0.4220385675 | Z98: 0.3710622711 | AA98: 0
C99: 92 | D99: x | E99: 45 | G99: 45 | Q99: 92 | W99: =SUM(U$8:U99) ->  | X99: =SUM(V$8:V99) ->  | Y99: 0.4220385675 | Z99: 0.3710622711 | AA99: 0
C100: 93 | D100: x | E100: 46 | G100: 46 | Q100: 93 | W100: =SUM(U$8:U100) ->  | X100: =SUM(V$8:V100) ->  | Y100: 0.4220385675 | Z100: 0.3710622711 | AA100: 0
C101: 94 | D101: x | E101: 47 | G101: 47 | Q101: 94 | W101: =SUM(U$8:U101) ->  | X101: =SUM(V$8:V101) ->  | Y101: 0.4220385675 | Z101: 0.3710622711 | AA101: 0
C102: 95 | D102: x | E102: 48 | G102: 48 | Q102: 95 | W102: =SUM(U$8:U102) ->  | X102: =SUM(V$8:V102) ->  | Y102: 0.4220385675 | Z102: 0.3710622711 | AA102: 0
C103: 96 | D103: x | E103: 49 | G103: 49 | Q103: 96 | W103: =SUM(U$8:U103) ->  | X103: =SUM(V$8:V103) ->  | Y103: 0.4220385675 | Z103: 0.3710622711 | AA103: 0
C104: 97 | D104: x | E104: 50 | G104: 50 | Q104: 97 | W104: =SUM(U$8:U104) ->  | X104: =SUM(V$8:V104) ->  | Y104: 0.4220385675 | Z104: 0.3710622711 | AA104: 0
C105: 98 | D105: x | E105: 51 | G105: 51 | Q105: 98 | W105: =SUM(U$8:U105) ->  | X105: =SUM(V$8:V105) ->  | Y105: 0.4220385675 | Z105: 0.3710622711 | AA105: 0
C106: 99 | D106: x | E106: 52 | G106: 52 | Q106: 99 | W106: =SUM(U$8:U106) ->  | X106: =SUM(V$8:V106) ->  | Y106: 0.4220385675 | Z106: 0.3710622711 | AA106: 0
C107: 100 | D107: x | E107: 53 | G107: 53 | Q107: 100 | W107: =SUM(U$8:U107) ->  | X107: =SUM(V$8:V107) ->  | Y107: 0.4220385675 | Z107: 0.3710622711 | AA107: 0
C108: 101 | D108: x | E108: 54 | G108: 54 | Q108: 101 | W108: =SUM(U$8:U108) ->  | X108: =SUM(V$8:V108) ->  | Y108: 0.4220385675 | Z108: 0.3710622711 | AA108: 0
C109: 102 | D109: x | Q109: 102 | W109: =SUM(U$8:U109) ->  | X109: =SUM(V$8:V109) ->  | Y109: 0.4220385675 | Z109: 0.3710622711 | AA109: 0
C110: 103 | D110: x | Q110: 103 | W110: =SUM(U$8:U110) ->  | X110: =SUM(V$8:V110) ->  | Y110: 0.4220385675 | Z110: 0.3710622711 | AA110: 0
C111: 104 | D111: x | Q111: 104 | W111: =SUM(U$8:U111) ->  | X111: =SUM(V$8:V111) ->  | Y111: 0.4220385675 | Z111: 0.3710622711 | AA111: 0
C112: 105 | D112: x | Q112: 105 | W112: =SUM(U$8:U112) ->  | X112: =SUM(V$8:V112) ->  | Y112: 0.4220385675 | Z112: 0.3710622711 | AA112: 0
C113: 106 | D113: x | Q113: 106 | W113: =SUM(U$8:U113) ->  | X113: =SUM(V$8:V113) ->  | Y113: 0.4220385675 | Z113: 0.3710622711 | AA113: 0
C114: 107 | D114: x | Q114: 107 | W114: =SUM(U$8:U114) ->  | X114: =SUM(V$8:V114) ->  | Y114: 0.4220385675 | Z114: 0.3710622711 | AA114: 0
C115: 108 | D115: x | Q115: 108 | W115: =SUM(U$8:U115) ->  | X115: =SUM(V$8:V115) ->  | Y115: 0.4220385675 | Z115: 0.3710622711 | AA115: 0
C116: 109 | D116: x | Q116: 109 | W116: =SUM(U$8:U116) ->  | X116: =SUM(V$8:V116) ->  | Y116: 0.4220385675 | Z116: 0.3710622711 | AA116: 0
C117: 110 | D117: x | Q117: 110 | W117: =SUM(U$8:U117) ->  | X117: =SUM(V$8:V117) ->  | Y117: 0.4220385675 | Z117: 0.3710622711 | AA117: 0
C118: 111 | D118: x | Q118: 111 | W118: =SUM(U$8:U118) ->  | X118: =SUM(V$8:V118) ->  | Y118: 0.4220385675 | Z118: 0.3710622711 | AA118: 0
C119: 112 | D119: x | Q119: 112 | W119: =SUM(U$8:U119) ->  | X119: =SUM(V$8:V119) ->  | Y119: 0.4220385675 | Z119: 0.3710622711 | AA119: 0
C120: 113 | D120: x | Q120: 113 | W120: =SUM(U$8:U120) ->  | X120: =SUM(V$8:V120) ->  | Y120: 0.4220385675 | Z120: 0.3710622711 | AA120: 0
C121: 114 | D121: x | Q121: 114 | W121: =SUM(U$8:U121) ->  | X121: =SUM(V$8:V121) ->  | Y121: 0.4220385675 | Z121: 0.3710622711 | AA121: 0
C122: 115 | D122: x | Q122: 115 | W122: =SUM(U$8:U122) ->  | X122: =SUM(V$8:V122) ->  | Y122: 0.4220385675 | Z122: 0.3710622711 | AA122: 0
C123: 116 | D123: x | Q123: 116 | W123: =SUM(U$8:U123) ->  | X123: =SUM(V$8:V123) ->  | Y123: 0.4220385675 | Z123: 0.3710622711 | AA123: 0
C124: 117 | D124: x | Q124: 117 | W124: =SUM(U$8:U124) ->  | X124: =SUM(V$8:V124) ->  | Y124: 0.4220385675 | Z124: 0.3710622711 | AA124: 0
C125: 118 | D125: x | Q125: 118 | W125: =SUM(U$8:U125) ->  | X125: =SUM(V$8:V125) ->  | Y125: 0.4220385675 | Z125: 0.3710622711 | AA125: 0
C126: 119 | D126: x | Q126: 119 | W126: =SUM(U$8:U126) ->  | X126: =SUM(V$8:V126) ->  | Y126: 0.4220385675 | Z126: 0.3710622711 | AA126: 0
C127: 120 | D127: x | Q127: 120 | W127: =SUM(U$8:U127) ->  | X127: =SUM(V$8:V127) ->  | Y127: 0.4220385675 | Z127: 0.3710622711 | AA127: 0
C128: 121 | D128: x | Q128: 121 | W128: =SUM(U$8:U128) ->  | X128: =SUM(V$8:V128) ->  | Y128: 0.4220385675 | Z128: 0.3710622711 | AA128: 0
C129: 122 | D129: x | Q129: 122 | W129: =SUM(U$8:U129) ->  | X129: =SUM(V$8:V129) ->  | Y129: 0.4220385675 | Z129: 0.3710622711 | AA129: 0
C130: 123 | D130: x | Q130: 123 | W130: =SUM(U$8:U130) ->  | X130: =SUM(V$8:V130) ->  | Y130: 0.4220385675 | Z130: 0.3710622711 | AA130: 0
C131: 124 | D131: x | Q131: 124 | W131: =SUM(U$8:U131) ->  | X131: =SUM(V$8:V131) ->  | Y131: 0.4220385675 | Z131: 0.3710622711 | AA131: 0
C132: 125 | D132: x | Q132: 125 | W132: =SUM(U$8:U132) ->  | X132: =SUM(V$8:V132) ->  | Y132: 0.4220385675 | Z132: 0.3710622711 | AA132: 0
C133: 126 | D133: x | Q133: 126 | W133: =SUM(U$8:U133) ->  | X133: =SUM(V$8:V133) ->  | Y133: 0.4220385675 | Z133: 0.3710622711 | AA133: 0
C134: 127 | D134: x | Q134: 127 | W134: =SUM(U$8:U134) ->  | X134: =SUM(V$8:V134) ->  | Y134: 0.4220385675 | Z134: 0.3710622711 | AA134: 0
C135: 128 | D135: x | Q135: 128 | W135: =SUM(U$8:U135) ->  | X135: =SUM(V$8:V135) ->  | Y135: 0.4220385675 | Z135: 0.3710622711 | AA135: 0
C136: 129 | D136: x | Q136: 129 | W136: =SUM(U$8:U136) ->  | X136: =SUM(V$8:V136) ->  | Y136: 0.4220385675 | Z136: 0.3710622711 | AA136: 0
C137: 130 | D137: x | F137: =IF(ISNUMBER(D137),D137/$F$6," ") ->  | H137: =IF(F137<>" ",C137*F137," ") ->  | O137: =IF(ISNUMBER(D137),C137,NA()) ->  | P137: =F137 ->  | Q137: =C137 -> 130 | R137: =H137 ->  | W137: =SUM(U$8:U137) ->  | X137: =SUM(V$8:V137) ->  | Y137: =$K$9 -> 0.4220385675 | Z137: =$K$13 -> 0.3710622711 | AA137: =IF(ISNUMBER(D137),Q137*ABS(F137-$K$9),0) -> 0
C138: =C137+1 -> 131 | D138: x | Q138: 131 | S138: =SMALL(P$8:P$157,Q138) ->  | T138: ="P"&(IF(S138=S137,VLOOKUP(S138,INDIRECT(T137),2,FALSE),VLOOKUP(S138,P$8:Q$157,2,FALSE))+8)&":R157" ->  | W138: =SUM(U$8:U138) ->  | X138: =SUM(V$8:V138) ->  | Y138: 0.4220385675 | Z138: 0.3710622711 | AA138: 0
C139: 132 | D139: x | Q139: 132 | U139: =IF(S139=S138,VLOOKUP(S139,INDIRECT(T138),2,FALSE),VLOOKUP(S139,P$8:R$157,2,FALSE)) ->  | V139: =IF(S139=S138,VLOOKUP(S139,INDIRECT(T138),3,FALSE),VLOOKUP(S139,P$8:R$157,3,FALSE)) ->  | W139: =SUM(U$8:U139) ->  | X139: =SUM(V$8:V139) ->  | Y139: 0.4220385675 | Z139: 0.3710622711 | AA139: 0
C140: 133 | D140: x | Q140: 133 | W140: =SUM(U$8:U140) ->  | X140: =SUM(V$8:V140) ->  | Y140: 0.4220385675 | Z140: 0.3710622711 | AA140: 0
C141: 134 | D141: x | Q141: 134 | W141: =SUM(U$8:U141) ->  | X141: =SUM(V$8:V141) ->  | Y141: 0.4220385675 | Z141: 0.3710622711 | AA141: 0
C142: 135 | D142: x | Q142: 135 | W142: =SUM(U$8:U142) ->  | X142: =SUM(V$8:V142) ->  | Y142: 0.4220385675 | Z142: 0.3710622711 | AA142: 0
C143: 136 | D143: x | Q143: 136 | W143: =SUM(U$8:U143) ->  | X143: =SUM(V$8:V143) ->  | Y143: 0.4220385675 | Z143: 0.3710622711 | AA143: 0
C144: 137 | D144: x | Q144: 137 | W144: =SUM(U$8:U144) ->  | X144: =SUM(V$8:V144) ->  | Y144: 0.4220385675 | Z144: 0.3710622711 | AA144: 0
C145: 138 | D145: x | Q145: 138 | W145: =SUM(U$8:U145) ->  | X145: =SUM(V$8:V145) ->  | Y145: 0.4220385675 | Z145: 0.3710622711 | AA145: 0
C146: 139 | D146: x | Q146: 139 | W146: =SUM(U$8:U146) ->  | X146: =SUM(V$8:V146) ->  | Y146: 0.4220385675 | Z146: 0.3710622711 | AA146: 0
C147: 140 | D147: x | Q147: 140 | W147: =SUM(U$8:U147) ->  | X147: =SUM(V$8:V147) ->  | Y147: 0.4220385675 | Z147: 0.3710622711 | AA147: 0
C148: 141 | D148: x | Q148: 141 | W148: =SUM(U$8:U148) ->  | X148: =SUM(V$8:V148) ->  | Y148: 0.4220385675 | Z148: 0.3710622711 | AA148: 0
C149: 142 | D149: x | Q149: 142 | W149: =SUM(U$8:U149) ->  | X149: =SUM(V$8:V149) ->  | Y149: 0.4220385675 | Z149: 0.3710622711 | AA149: 0
C150: 143 | D150: x | Q150: 143 | W150: =SUM(U$8:U150) ->  | X150: =SUM(V$8:V150) ->  | Y150: 0.4220385675 | Z150: 0.3710622711 | AA150: 0
C151: 144 | D151: x | Q151: 144 | W151: =SUM(U$8:U151) ->  | X151: =SUM(V$8:V151) ->  | Y151: 0.4220385675 | Z151: 0.3710622711 | AA151: 0
C152: 145 | D152: x | Q152: 145 | W152: =SUM(U$8:U152) ->  | X152: =SUM(V$8:V152) ->  | Y152: 0.4220385675 | Z152: 0.3710622711 | AA152: 0
C153: 146 | D153: x | Q153: 146 | W153: =SUM(U$8:U153) ->  | X153: =SUM(V$8:V153) ->  | Y153: 0.4220385675 | Z153: 0.3710622711 | AA153: 0
C154: 147 | D154: x | Q154: 147 | W154: =SUM(U$8:U154) ->  | X154: =SUM(V$8:V154) ->  | Y154: 0.4220385675 | Z154: 0.3710622711 | AA154: 0
C155: 148 | D155: x | Q155: 148 | W155: =SUM(U$8:U155) ->  | X155: =SUM(V$8:V155) ->  | Y155: 0.4220385675 | Z155: 0.3710622711 | AA155: 0
C156: 149 | D156: x | Q156: 149 | W156: =SUM(U$8:U156) ->  | X156: =SUM(V$8:V156) ->  | Y156: 0.4220385675 | Z156: 0.3710622711 | AA156: 0
C157: 150 | D157: x | Q157: 150 | W157: =SUM(U$8:U157) ->  | X157: =SUM(V$8:V157) ->  | Y157: 0.4220385675 | Z157: 0.3710622711 | AA157: 0

Sheet PrintLayout
D3: =MainSheet!C3 -> WSU Othello
D7: Average catch (in) | O7: =MainSheet!$K$9 -> 0.4220385675
D9: Distribution Uniformity | O9: =MainSheet!$K$14 -> 0.8792141279
D11: S | E11: Can ID | F11: mL | G11: in | I11: S | J11: Can ID | K11: mL | L11: in | N11: S | O11: Can ID | P11: mL | Q11: in | S11: S | T11: Can ID | U11: mL | V11: in | X11: S | Y11: Can ID | Z11: mL | AA11: in
D12: =MainSheet!$B8 -> 0 | E12: 1 | F12: =MainSheet!$D8 -> x | G12: =MainSheet!$F8 ->  | I12: =MainSheet!$B38 -> 0 | J12: =E41+1 -> 31 | K12: =MainSheet!$D38 -> x | L12: =MainSheet!$F38 ->  | N12: =MainSheet!$B68 -> 0 | O12: =J41+1 -> 61 | P12: =MainSheet!$D68 -> x | Q12: =MainSheet!$F68 ->  | S12: =MainSheet!$B98 -> 0 | T12: =O41+1 -> 91 | U12: =MainSheet!$D98 -> x | V12: =MainSheet!$F98 ->  | X12: =MainSheet!$B128 -> 0 | Y12: =T41+1 -> 121 | Z12: =MainSheet!$D128 -> x | AA12: =MainSheet!$F128 -> 
D13: =MainSheet!$B9 -> 0 | E13: =E12+1 -> 2 | F13: =MainSheet!$D9 -> x | G13: =MainSheet!$F9 ->  | I13: =MainSheet!$B39 -> 0 | J13: =J12+1 -> 32 | K13: =MainSheet!$D39 -> x | L13: =MainSheet!$F39 ->  | N13: =MainSheet!$B69 -> 0 | O13: =O12+1 -> 62 | P13: =MainSheet!$D69 -> x | Q13: =MainSheet!$F69 ->  | S13: =MainSheet!$B99 -> 0 | T13: =+T12+1 -> 92 | U13: =MainSheet!$D99 -> x | V13: =MainSheet!$F99 ->  | X13: =MainSheet!$B129 -> 0 | Y13: =Y12+1 -> 122 | Z13: =MainSheet!$D129 -> x | AA13: =MainSheet!$F129 -> 
D14: =MainSheet!$B10 -> 0 | E14: =E13+1 -> 3 | F14: =MainSheet!$D10 -> x | G14: =MainSheet!$F10 ->  | I14: =MainSheet!$B40 -> 0 | J14: =J13+1 -> 33 | K14: =MainSheet!$D40 -> x | L14: =MainSheet!$F40 ->  | N14: =MainSheet!$B70 -> 0 | O14: =O13+1 -> 63 | P14: =MainSheet!$D70 -> x | Q14: =MainSheet!$F70 ->  | S14: =MainSheet!$B100 -> 0 | T14: =+T13+1 -> 93 | U14: =MainSheet!$D100 -> x | V14: =MainSheet!$F100 ->  | X14: =MainSheet!$B130 -> 0 | Y14: =Y13+1 -> 123 | Z14: =MainSheet!$D130 -> x | AA14: =MainSheet!$F130 -> 
D15: =MainSheet!$B11 -> 0 | E15: 4 | F15: =MainSheet!$D11 -> x | G15: =MainSheet!$F11 ->  | I15: =MainSheet!$B41 -> 0 | J15: 34 | K15: =MainSheet!$D41 -> x | L15: =MainSheet!$F41 ->  | N15: =MainSheet!$B71 -> 0 | O15: 64 | P15: =MainSheet!$D71 -> x | Q15: =MainSheet!$F71 ->  | S15: =MainSheet!$B101 -> 0 | T15: 94 | U15: =MainSheet!$D101 -> x | V15: =MainSheet!$F101 ->  | X15: =MainSheet!$B131 -> 0 | Y15: 124 | Z15: =MainSheet!$D131 -> x | AA15: =MainSheet!$F131 -> 
D16: =MainSheet!$B12 -> 0 | E16: 5 | F16: =MainSheet!$D12 -> x | G16: =MainSheet!$F12 ->  | I16: =MainSheet!$B42 -> 0 | J16: 35 | K16: =MainSheet!$D42 -> x | L16: =MainSheet!$F42 ->  | N16: =MainSheet!$B72 -> 0 | O16: 65 | P16: =MainSheet!$D72 -> x | Q16: =MainSheet!$F72 ->  | S16: =MainSheet!$B102 -> 0 | T16: 95 | U16: =MainSheet!$D102 -> x | V16: =MainSheet!$F102 ->  | X16: =MainSheet!$B132 -> 0 | Y16: 125 | Z16: =MainSheet!$D132 -> x | AA16: =MainSheet!$F132 -> 
D17: =MainSheet!$B13 -> 0 | E17: 6 | F17: =MainSheet!$D13 -> 150 | G17: =MainSheet!$F13 -> 0.3571428571 | I17: =MainSheet!$B43 -> 0 | J17: 36 | K17: =MainSheet!$D43 -> x | L17: =MainSheet!$F43 ->  | N17: =MainSheet!$B73 -> 0 | O17: 66 | P17: =MainSheet!$D73 -> x | Q17: =MainSheet!$F73 ->  | S17: =MainSheet!$B103 -> 0 | T17: 96 | U17: =MainSheet!$D103 -> x | V17: =MainSheet!$F103 ->  | X17: =MainSheet!$B133 -> 0 | Y17: 126 | Z17: =MainSheet!$D133 -> x | AA17: =MainSheet!$F133 -> 
D18: =MainSheet!$B14 -> 0 | E18: 7 | F18: =MainSheet!$D14 -> 200 | G18: =MainSheet!$F14 -> 0.4761904762 | I18: =MainSheet!$B44 -> 0 | J18: 37 | K18: =MainSheet!$D44 -> x | L18: =MainSheet!$F44 ->  | N18: =MainSheet!$B74 -> 0 | O18: 67 | P18: =MainSheet!$D74 -> x | Q18: =MainSheet!$F74 ->  | S18: =MainSheet!$B104 -> 0 | T18: 97 | U18: =MainSheet!$D104 -> x | V18: =MainSheet!$F104 ->  | X18: =MainSheet!$B134 -> 0 | Y18: 127 | Z18: =MainSheet!$D134 -> x | AA18: =MainSheet!$F134 -> 
D19: =MainSheet!$B15 -> 0 | E19: 8 | F19: =MainSheet!$D15 -> 154 | G19: =MainSheet!$F15 -> 0.3666666667 | I19: =MainSheet!$B45 -> 0 | J19: 38 | K19: =MainSheet!$D45 -> x | L19: =MainSheet!$F45 ->  | N19: =MainSheet!$B75 -> 0 | O19: 68 | P19: =MainSheet!$D75 -> x | Q19: =MainSheet!$F75 ->  | S19: =MainSheet!$B105 -> 0 | T19: 98 | U19: =MainSheet!$D105 -> x | V19: =MainSheet!$F105 ->  | X19: =MainSheet!$B135 -> 0 | Y19: 128 | Z19: =MainSheet!$D135 -> x | AA19: =MainSheet!$F135 -> 
D20: =MainSheet!$B16 -> 0 | E20: 9 | F20: =MainSheet!$D16 -> 200 | G20: =MainSheet!$F16 -> 0.4761904762 | I20: =MainSheet!$B46 -> 0 | J20: 39 | K20: =MainSheet!$D46 -> x | L20: =MainSheet!$F46 ->  | N20: =MainSheet!$B76 -> 0 | O20: 69 | P20: =MainSheet!$D76 -> x | Q20: =MainSheet!$F76 ->  | S20: =MainSheet!$B106 -> 0 | T20: 99 | U20: =MainSheet!$D106 -> x | V20: =MainSheet!$F106 ->  | X20: =MainSheet!$B136 -> 0 | Y20: 129 | Z20: =MainSheet!$D136 -> x | AA20: =MainSheet!$F136 -> 
D21: =MainSheet!$B17 -> 0 | E21: 10 | F21: =MainSheet!$D17 -> 185 | G21: =MainSheet!$F17 -> 0.4404761905 | I21: =MainSheet!$B47 -> 0 | J21: 40 | K21: =MainSheet!$D47 -> x | L21: =MainSheet!$F47 ->  | N21: =MainSheet!$B77 -> 0 | O21: 70 | P21: =MainSheet!$D77 -> x | Q21: =MainSheet!$F77 ->  | S21: =MainSheet!$B107 -> 0 | T21: 100 | U21: =MainSheet!$D107 -> x | V21: =MainSheet!$F107 ->  | X21: =MainSheet!$B137 -> 0 | Y21: 130 | Z21: =MainSheet!$D137 -> x | AA21: =MainSheet!$F137 -> 
D22: =MainSheet!$B18 -> 0 | E22: 11 | F22: =MainSheet!$D18 -> 179 | G22: =MainSheet!$F18 -> 0.4261904762 | I22: =MainSheet!$B48 -> 0 | J22: 41 | K22: =MainSheet!$D48 -> x | L22: =MainSheet!$F48 ->  | N22: =MainSheet!$B78 -> 0 | O22: 71 | P22: =MainSheet!$D78 -> x | Q22: =MainSheet!$F78 ->  | S22: =MainSheet!$B108 -> 0 | T22: 101 | U22: =MainSheet!$D108 -> x | V22: =MainSheet!$F108 ->  | X22: =MainSheet!$B138 -> 0 | Y22: 131 | Z22: =MainSheet!$D138 -> x | AA22: =MainSheet!$F138 -> 
D23: =MainSheet!$B19 -> 0 | E23: 12 | F23: =MainSheet!$D19 -> 160 | G23: =MainSheet!$F19 -> 0.380952381 | I23: =MainSheet!$B49 -> 0 | J23: 42 | K23: =MainSheet!$D49 -> x | L23: =MainSheet!$F49 ->  | N23: =MainSheet!$B79 -> 0 | O23: 72 | P23: =MainSheet!$D79 -> x | Q23: =MainSheet!$F79 ->  | S23: =MainSheet!$B109 -> 0 | T23: 102 | U23: =MainSheet!$D109 -> x | V23: =MainSheet!$F109 ->  | X23: =MainSheet!$B139 -> 0 | Y23: 132 | Z23: =MainSheet!$D139 -> x | AA23: =MainSheet!$F139 -> 
D24: =MainSheet!$B20 -> 0 | E24: 13 | F24: =MainSheet!$D20 -> 192 | G24: =MainSheet!$F20 -> 0.4571428571 | I24: =MainSheet!$B50 -> 0 | J24: 43 | K24: =MainSheet!$D50 -> x | L24: =MainSheet!$F50 ->  | N24: =MainSheet!$B80 -> 0 | O24: 73 | P24: =MainSheet!$D80 -> x | Q24: =MainSheet!$F80 ->  | S24: =MainSheet!$B110 -> 0 | T24: 103 | U24: =MainSheet!$D110 -> x | V24: =MainSheet!$F110 ->  | X24: =MainSheet!$B140 -> 0 | Y24: 133 | Z24: =MainSheet!$D140 -> x | AA24: =MainSheet!$F140 -> 
D25: =MainSheet!$B21 -> 0 | E25: 14 | F25: =MainSheet!$D21 -> 189 | G25: =MainSheet!$F21 -> 0.45 | I25: =MainSheet!$B51 -> 0 | J25: 44 | K25: =MainSheet!$D51 -> x | L25: =MainSheet!$F51 ->  | N25: =MainSheet!$B81 -> 0 | O25: 74 | P25: =MainSheet!$D81 -> x | Q25: =MainSheet!$F81 ->  | S25: =MainSheet!$B111 -> 0 | T25: 104 | U25: =MainSheet!$D111 -> x | V25: =MainSheet!$F111 ->  | X25: =MainSheet!$B141 -> 0 | Y25: 134 | Z25: =MainSheet!$D141 -> x | AA25: =MainSheet!$F141 -> 
D26: =MainSheet!$B22 -> 0 | E26: 15 | F26: =MainSheet!$D22 -> 173 | G26: =MainSheet!$F22 -> 0.4119047619 | I26: =MainSheet!$B52 -> 0 | J26: 45 | K26: =MainSheet!$D52 -> x | L26: =MainSheet!$F52 ->  | N26: =MainSheet!$B82 -> 0 | O26: 75 | P26: =MainSheet!$D82 -> x | Q26: =MainSheet!$F82 ->  | S26: =MainSheet!$B112 -> 0 | T26: 105 | U26: =MainSheet!$D112 -> x | V26: =MainSheet!$F112 ->  | X26: =MainSheet!$B142 -> 0 | Y26: 135 | Z26: =MainSheet!$D142 -> x | AA26: =MainSheet!$F142 -> 
D27: =MainSheet!$B23 -> 0 | E27: 16 | F27: =MainSheet!$D23 -> 165 | G27: =MainSheet!$F23 -> 0.3928571429 | I27: =MainSheet!$B53 -> 0 | J27: 46 | K27: =MainSheet!$D53 -> x | L27: =MainSheet!$F53 ->  | N27: =MainSheet!$B83 -> 0 | O27: 76 | P27: =MainSheet!$D83 -> x | Q27: =MainSheet!$F83 ->  | S27: =MainSheet!$B113 -> 0 | T27: 106 | U27: =MainSheet!$D113 -> x | V27: =MainSheet!$F113 ->  | X27: =MainSheet!$B143 -> 0 | Y27: 136 | Z27: =MainSheet!$D143 -> x | AA27: =MainSheet!$F143 -> 
D28: =MainSheet!$B24 -> 0 | E28: 17 | F28: =MainSheet!$D24 -> x | G28: =MainSheet!$F24 ->  | I28: =MainSheet!$B54 -> 0 | J28: 47 | K28: =MainSheet!$D54 -> x | L28: =MainSheet!$F54 ->  | N28: =MainSheet!$B84 -> 0 | O28: 77 | P28: =MainSheet!$D84 -> x | Q28: =MainSheet!$F84 ->  | S28: =MainSheet!$B114 -> 0 | T28: 107 | U28: =MainSheet!$D114 -> x | V28: =MainSheet!$F114 ->  | X28: =MainSheet!$B144 -> 0 | Y28: 137 | Z28: =MainSheet!$D144 -> x | AA28: =MainSheet!$F144 -> 
D29: =MainSheet!$B25 -> 0 | E29: 18 | F29: =MainSheet!$D25 -> x | G29: =MainSheet!$F25 ->  | I29: =MainSheet!$B55 -> 0 | J29: 48 | K29: =MainSheet!$D55 -> x | L29: =MainSheet!$F55 ->  | N29: =MainSheet!$B85 -> 0 | O29: 78 | P29: =MainSheet!$D85 -> x | Q29: =MainSheet!$F85 ->  | S29: =MainSheet!$B115 -> 0 | T29: 108 | U29: =MainSheet!$D115 -> x | V29: =MainSheet!$F115 ->  | X29: =MainSheet!$B145 -> 0 | Y29: 138 | Z29: =MainSheet!$D145 -> x | AA29: =MainSheet!$F145 -> 
D30: =MainSheet!$B26 -> 0 | E30: 19 | F30: =MainSheet!$D26 -> x | G30: =MainSheet!$F26 ->  | I30: =MainSheet!$B56 -> 0 | J30: 49 | K30: =MainSheet!$D56 -> x | L30: =MainSheet!$F56 ->  | N30: =MainSheet!$B86 -> 0 | O30: 79 | P30: =MainSheet!$D86 -> x | Q30: =MainSheet!$F86 ->  | S30: =MainSheet!$B116 -> 0 | T30: 109 | U30: =MainSheet!$D116 -> x | V30: =MainSheet!$F116 ->  | X30: =MainSheet!$B146 -> 0 | Y30: 139 | Z30: =MainSheet!$D146 -> x | AA30: =MainSheet!$F146 -> 
D31: =MainSheet!$B27 -> 0 | E31: 20 | F31: =MainSheet!$D27 -> x | G31: =MainSheet!$F27 ->  | I31: =MainSheet!$B57 -> 0 | J31: 50 | K31: =MainSheet!$D57 -> x | L31: =MainSheet!$F57 ->  | N31: =MainSheet!$B87 -> 0 | O31: 80 | P31: =MainSheet!$D87 -> x | Q31: =MainSheet!$F87 ->  | S31: =MainSheet!$B117 -> 0 | T31: 110 | U31: =MainSheet!$D117 -> x | V31: =MainSheet!$F117 ->  | X31: =MainSheet!$B147 -> 0 | Y31: 140 | Z31: =MainSheet!$D147 -> x | AA31: =MainSheet!$F147 -> 
D32: =MainSheet!$B28 -> 0 | E32: 21 | F32: =MainSheet!$D28 -> x | G32: =MainSheet!$F28 ->  | I32: =MainSheet!$B58 -> 0 | J32: 51 | K32: =MainSheet!$D58 -> x | L32: =MainSheet!$F58 ->  | N32: =MainSheet!$B88 -> 0 | O32: 81 | P32: =MainSheet!$D88 -> x | Q32: =MainSheet!$F88 ->  | S32: =MainSheet!$B118 -> 0 | T32: 111 | U32: =MainSheet!$D118 -> x | V32: =MainSheet!$F118 ->  | X32: =MainSheet!$B148 -> 0 | Y32: 141 | Z32: =MainSheet!$D148 -> x | AA32: =MainSheet!$F148 -> 
D33: =MainSheet!$B29 -> 0 | E33: 22 | F33: =MainSheet!$D29 -> x | G33: =MainSheet!$F29 ->  | I33: =MainSheet!$B59 -> 0 | J33: 52 | K33: =MainSheet!$D59 -> x | L33: =MainSheet!$F59 ->  | N33: =MainSheet!$B89 -> 0 | O33: 82 | P33: =MainSheet!$D89 -> x | Q33: =MainSheet!$F89 ->  | S33: =MainSheet!$B119 -> 0 | T33: 112 | U33: =MainSheet!$D119 -> x | V33: =MainSheet!$F119 ->  | X33: =MainSheet!$B149 -> 0 | Y33: 142 | Z33: =MainSheet!$D149 -> x | AA33: =MainSheet!$F149 -> 
D34: =MainSheet!$B30 -> 0 | E34: 23 | F34: =MainSheet!$D30 -> x | G34: =MainSheet!$F30 ->  | I34: =MainSheet!$B60 -> 0 | J34: 53 | K34: =MainSheet!$D60 -> x | L34: =MainSheet!$F60 ->  | N34: =MainSheet!$B90 -> 0 | O34: 83 | P34: =MainSheet!$D90 -> x | Q34: =MainSheet!$F90 ->  | S34: =MainSheet!$B120 -> 0 | T34: 113 | U34: =MainSheet!$D120 -> x | V34: =MainSheet!$F120 ->  | X34: =MainSheet!$B150 -> 0 | Y34: 143 | Z34: =MainSheet!$D150 -> x | AA34: =MainSheet!$F150 -> 
D35: =MainSheet!$B31 -> 0 | E35: 24 | F35: =MainSheet!$D31 -> x | G35: =MainSheet!$F31 ->  | I35: =MainSheet!$B61 -> 0 | J35: 54 | K35: =MainSheet!$D61 -> x | L35: =MainSheet!$F61 ->  | N35: =MainSheet!$B91 -> 0 | O35: 84 | P35: =MainSheet!$D91 -> x | Q35: =MainSheet!$F91 ->  | S35: =MainSheet!$B121 -> 0 | T35: 114 | U35: =MainSheet!$D121 -> x | V35: =MainSheet!$F121 ->  | X35: =MainSheet!$B151 -> 0 | Y35: 144 | Z35: =MainSheet!$D151 -> x | AA35: =MainSheet!$F151 -> 
D36: =MainSheet!$B32 -> 0 | E36: 25 | F36: =MainSheet!$D32 -> x | G36: =MainSheet!$F32 ->  | I36: =MainSheet!$B62 -> 0 | J36: 55 | K36: =MainSheet!$D62 -> x | L36: =MainSheet!$F62 ->  | N36: =MainSheet!$B92 -> 0 | O36: 85 | P36: =MainSheet!$D92 -> x | Q36: =MainSheet!$F92 ->  | S36: =MainSheet!$B122 -> 0 | T36: 115 | U36: =MainSheet!$D122 -> x | V36: =MainSheet!$F122 ->  | X36: =MainSheet!$B152 -> 0 | Y36: 145 | Z36: =MainSheet!$D152 -> x | AA36: =MainSheet!$F152 -> 
D37: =MainSheet!$B33 -> 0 | E37: 26 | F37: =MainSheet!$D33 -> x | G37: =MainSheet!$F33 ->  | I37: =MainSheet!$B63 -> 0 | J37: 56 | K37: =MainSheet!$D63 -> x | L37: =MainSheet!$F63 ->  | N37: =MainSheet!$B93 -> 0 | O37: 86 | P37: =MainSheet!$D93 -> x | Q37: =MainSheet!$F93 ->  | S37: =MainSheet!$B123 -> 0 | T37: 116 | U37: =MainSheet!$D123 -> x | V37: =MainSheet!$F123 ->  | X37: =MainSheet!$B153 -> 0 | Y37: 146 | Z37: =MainSheet!$D153 -> x | AA37: =MainSheet!$F153 -> 
D38: =MainSheet!$B34 -> 0 | E38: 27 | F38: =MainSheet!$D34 -> x | G38: =MainSheet!$F34 ->  | I38: =MainSheet!$B64 -> 0 | J38: 57 | K38: =MainSheet!$D64 -> x | L38: =MainSheet!$F64 ->  | N38: =MainSheet!$B94 -> 0 | O38: 87 | P38: =MainSheet!$D94 -> x | Q38: =MainSheet!$F94 ->  | S38: =MainSheet!$B124 -> 0 | T38: 117 | U38: =MainSheet!$D124 -> x | V38: =MainSheet!$F124 ->  | X38: =MainSheet!$B154 -> 0 | Y38: 147 | Z38: =MainSheet!$D154 -> x | AA38: =MainSheet!$F154 -> 
D39: =MainSheet!$B35 -> 0 | E39: 28 | F39: =MainSheet!$D35 -> x | G39: =MainSheet!$F35 ->  | I39: =MainSheet!$B65 -> 0 | J39: 58 | K39: =MainSheet!$D65 -> x | L39: =MainSheet!$F65 ->  | N39: =MainSheet!$B95 -> 0 | O39: 88 | P39: =MainSheet!$D95 -> x | Q39: =MainSheet!$F95 ->  | S39: =MainSheet!$B125 -> 0 | T39: 118 | U39: =MainSheet!$D125 -> x | V39: =MainSheet!$F125 ->  | X39: =MainSheet!$B155 -> 0 | Y39: 148 | Z39: =MainSheet!$D155 -> x | AA39: =MainSheet!$F155 -> 
D40: =MainSheet!$B36 -> 0 | E40: 29 | F40: =MainSheet!$D36 -> x | G40: =MainSheet!$F36 ->  | I40: =MainSheet!$B66 -> 0 | J40: 59 | K40: =MainSheet!$D66 -> x | L40: =MainSheet!$F66 ->  | N40: =MainSheet!$B96 -> 0 | O40: 89 | P40: =MainSheet!$D96 -> x | Q40: =MainSheet!$F96 ->  | S40: =MainSheet!$B126 -> 0 | T40: 119 | U40: =MainSheet!$D126 -> x | V40: =MainSheet!$F126 ->  | X40: =MainSheet!$B156 -> 0 | Y40: 149 | Z40: =MainSheet!$D156 -> x | AA40: =MainSheet!$F156 -> 
D41: =MainSheet!$B37 -> 0 | E41: 30 | F41: =MainSheet!$D37 -> x | G41: =MainSheet!$F37 ->  | I41: =MainSheet!$B67 -> 0 | J41: 60 | K41: =MainSheet!$D67 -> x | L41: =MainSheet!$F67 ->  | N41: =MainSheet!$B97 -> 0 | O41: 90 | P41: =MainSheet!$D97 -> x | Q41: =MainSheet!$F97 ->  | S41: =MainSheet!$B127 -> 0 | T41: 120 | U41: =MainSheet!$D127 -> x | V41: =MainSheet!$F127 ->  | X41: =MainSheet!$B157 -> 0 | Y41: 150 | Z41: =MainSheet!$D157 -> x | AA41: =MainSheet!$F157 -> 

Sheet Efficiency&OperationCharts
B2: End Tower Travel Speed | F2: Pivot Settings and Efficiency
B3: Marker Set Time (hh:mm) | D3: 09:38:00 | F3: Pivot Wetted Radius (ft) | G3: 1250 | K3: % Setting | L3: Full Rotation Time (hr) | M3: Actual Applied Depth (in) | O3: Calculated Values
B4: Marker End Time (hh:mm) | D4: 10:23:00 | F4: Inflow Rate (gpm) | G4: 880 | K4: 0.01 | L4: =$D$9/K4 -> 1732.495949 | M4: =$D$8/K4 -> 21.10192837 | O4: Trav Speed at Tested Setting | P4: =D5/(60*HOUR(D4-D3)+MINUTE(D4-D3)) -> 3.777777778 | Q4: ft/min
B5: Tower Travel Distance (ft) | D5: 170 | F5: % Setting During Eval. | G5: 50 | K5: =K4+0.01 -> 0.02 | L5: 866.2479743 | M5: 10.55096419 | O5: Wghtd Avg ya as Tested | P5: =MainSheet!K9 -> 0.4220385675 | Q5: in
B6: Distance to Last Tower (ft) | D6: 1100 | F6: Fraction of Full Circle % | G6: 50 | K6: =K5+0.01 -> 0.03 | L6: 577.4986496 | M6: 7.033976125 | O6: Full Rot Time at Tested Setting | P6: =D10/P4/60 -> 34.64991897 | Q6: hrs
K7: 0.04 | L7: 433.1239872 | M7: 5.275482094 | O7: App Rate | P7: =PI()*G3^2*P5/12/P6/60*7.4805195 -> 621.1823088 | Q7: gpm
B8: Minimum Depth at 100% (in) | D8: =P5*(G5/100) -> 0.2110192837 | F8: Application Efficiency | G8: =P7/G4 -> 0.7058889872 | K8: 0.05 | L8: 346.4991897 | M8: 4.220385675
B9: Minimum Rotation Time at 100% (hrs) | D9: =P6*(G5/100) -> 17.32495949 | K9: 0.06 | L9: 288.7493248 | M9: 3.516988062
B10: Circumference (ft) | D10: =2*PI()*G3 -> 7853.981634 | K10: 0.07 | L10: 247.4994212 | M10: 3.014561196
B11: Area (acres) | D11: =PI()*G3^2/43560*G6/100 -> 56.34456521 | K11: 0.08 | L11: 216.5619936 | M11: 2.637741047
K12: 0.09 | L12: 192.4995499 | M12: 2.344658708
K13: 0.1 | L13: 173.2495949 | M13: 2.110192837
K14: 0.11 | L14: 157.4996317 | M14: 1.918357125
K15: 0.12 | L15: 144.3746624 | M15: 1.758494031
K16: 0.13 | L16: 133.2689191 | M16: 1.62322526
K17: 0.14 | L17: 123.7497106 | M17: 1.507280598
K18: 0.15 | L18: 115.4997299 | M18: 1.406795225
K19: 0.16 | L19: 108.2809968 | M19: 1.318870523
K20: 0.17 | L20: 101.9115264 | M20: 1.241289904
K21: 0.18 | L21: 96.24977493 | M21: 1.172329354
K22: 0.19 | L22: 91.1839973 | M22: 1.110627809
K23: 0.2 | L23: 86.62479743 | M23: 1.055096419
K24: 0.21 | L24: 82.49980708 | M24: 1.004853732
K25: 0.22 | L25: 78.74981585 | M25: 0.9591785625
K26: 0.23 | L26: 75.32591081 | M26: 0.9174751467
K27: 0.24 | L27: 72.18733119 | M27: 0.8792470156
K28: 0.25 | L28: 69.29983795 | M28: 0.844077135
K29: 0.26 | L29: 66.63445956 | M29: 0.8116126298
K30: 0.27 | L30: 64.16651662 | M30: 0.7815529028
K31: 0.28 | L31: 61.87485531 | M31: 0.7536402991
K32: 0.29 | L32: 59.74123961 | M32: 0.7276527026
K33: 0.3 | L33: 57.74986496 | M33: 0.7033976125
C34: % Setting | D34: Application Depth (in) | E34: Time for Full Rotation | K34: 0.31 | L34: 55.88696609 | M34: 0.6807073669
C35: 0.05 | D35: =$D$8/C35 -> 4.220385675 | E35: =$D$9/C35 -> 346.4991897 | K35: 0.32 | L35: 54.1404984 | M35: 0.6594352617
C36: 0.1 | D36: 2.110192837 | E36: 173.2495949 | K36: 0.33 | L36: 52.49987723 | M36: 0.639452375
C37: 0.15 | D37: 1.406795225 | E37: 115.4997299 | K37: 0.34 | L37: 50.9557632 | M37: 0.6206449522
C38: 0.2 | D38: 1.055096419 | E38: 86.62479743 | K38: 0.35 | L38: 49.49988425 | M38: 0.6029122393
C39: 0.25 | D39: 0.844077135 | E39: 69.29983795 | K39: 0.36 | L39: 48.12488746 | M39: 0.5861646771
C40: 0.3 | D40: 0.7033976125 | E40: 57.74986496 | K40: 0.37 | L40: 46.82421483 | M40: 0.5703223885
C41: 0.35 | D41: 0.6029122393 | E41: 49.49988425 | K41: 0.38 | L41: 45.59199865 | M41: 0.5553139046
C42: 0.4 | D42: 0.5275482094 | E42: 43.31239872 | K42: 0.39 | L42: 44.42297304 | M42: 0.5410750865
C43: 0.45 | D43: 0.4689317417 | E43: 38.49990997 | K43: 0.4 | L43: 43.31239872 | M43: 0.5275482094
C44: 0.5 | D44: 0.4220385675 | E44: 34.64991897 | K44: 0.41 | L44: 42.25599875 | M44: 0.5146811799
C45: 0.55 | D45: 0.383671425 | E45: 31.49992634 | K45: 0.42 | L45: 41.24990354 | M45: 0.5024268661
C46: 0.6 | D46: 0.3516988062 | E46: 28.87493248 | K46: 0.43 | L46: 40.29060346 | M46: 0.4907425203
C47: 0.7 | D47: 0.3014561196 | E47: 24.74994212 | K47: 0.44 | L47: 39.37490792 | M47: 0.4795892812
C48: 0.8 | D48: 0.2637741047 | E48: 21.65619936 | K48: 0.45 | L48: 38.49990997 | M48: 0.4689317417
C49: 0.9 | D49: 0.2344658708 | E49: 19.24995499 | K49: 0.46 | L49: 37.66295541 | M49: 0.4587375734
C50: 1 | D50: 0.2110192837 | E50: 17.32495949 | K50: 0.47 | L50: 36.86161593 | M50: 0.4489771995
K51: 0.48 | L51: 36.0936656 | M51: 0.4396235078
K52: 0.49 | L52: 35.35706018 | M52: 0.4306515995
K53: 0.5 | L53: 34.64991897 | M53: 0.4220385675
K54: 0.51 | L54: 33.9705088 | M54: 0.4137633015
K55: 0.52 | L55: 33.31722978 | M55: 0.4058063149
K56: =K55+0.01 -> 0.53 | L56: 32.68860281 | M56: 0.398149592
K57: 0.54 | L57: 32.08325831 | M57: 0.3907764514
K58: 0.55 | L58: 31.49992634 | M58: 0.383671425
K59: 0.56 | L59: 30.93742765 | M59: 0.3768201495
K60: 0.57 | L60: 30.39466577 | M60: 0.3702092697
K61: 0.58 | L61: 29.8706198 | M61: 0.3638263513
K62: 0.59 | L62: 29.36433811 | M62: 0.357659803
K63: 0.6 | L63: 28.87493248 | M63: 0.3516988062
K64: 0.61 | L64: 28.40157293 | M64: 0.345933252
K65: 0.62 | L65: 27.94348304 | M65: 0.3403536835
K66: 0.63 | L66: 27.49993569 | M66: 0.334951244
K67: 0.64 | L67: 27.0702492 | M67: 0.3297176309
K68: 0.65 | L68: =$D$9/K68 -> 26.65378383 | M68: =$D$8/K68 -> 0.3246450519
K69: 0.66 | L69: 26.24993862 | M69: 0.3197261875
K70: =K69+0.01 -> 0.67 | L70: 25.85814849 | M70: 0.3149541548
K71: 0.68 | L71: 25.4778816 | M71: 0.3103224761
K72: 0.69 | L72: 25.10863694 | M72: 0.3058250489
K73: 0.7 | L73: 24.74994212 | M73: 0.3014561196
K74: 0.71 | L74: 24.40135139 | M74: 0.2972102588
K75: 0.72 | L75: 24.06244373 | M75: 0.2930823385
K76: 0.73 | L76: 23.73282121 | M76: 0.289067512
K77: 0.74 | L77: 23.41210741 | M77: 0.2851611943
K78: 0.75 | L78: 23.09994598 | M78: 0.281359045
K79: 0.76 | L79: 22.79599932 | M79: 0.2776569523
K80: 0.77 | L80: 22.49994739 | M80: 0.2740510179
K81: 0.78 | L81: 22.21148652 | M81: 0.2705375433
K82: 0.79 | L82: 21.93032846 | M82: 0.2671130174
K83: 0.8 | L83: 21.65619936 | M83: 0.2637741047
K84: 0.81 | L84: 21.38883887 | M84: 0.2605176343
K85: 0.82 | L85: 21.12799937 | M85: 0.2573405899
K86: 0.83 | L86: 20.87344516 | M86: 0.2542401009
K87: 0.84 | L87: 20.62495177 | M87: 0.251213433
K88: 0.85 | L88: 20.38230528 | M88: 0.2482579809
K89: 0.86 | L89: 20.14530173 | M89: 0.2453712602
K90: 0.87 | L90: 19.91374654 | M90: 0.2425509009
K91: 0.88 | L91: 19.68745396 | M91: 0.2397946406
K92: 0.89 | L92: 19.46624661 | M92: 0.2371003188
K93: 0.9 | L93: 19.24995499 | M93: 0.2344658708
K94: 0.91 | L94: 19.03841702 | M94: 0.2318893228
K95: 0.92 | L95: 18.8314777 | M95: 0.2293687867
K96: 0.93 | L96: 18.6289887 | M96: 0.2269024556
K97: 0.94 | L97: 18.43080796 | M97: 0.2244885997
K98: 0.95 | L98: 18.23679946 | M98: 0.2221255618
K99: 0.96 | L99: 18.0468328 | M99: 0.2198117539
K100: 0.97 | L100: =$D$9/K100 -> 17.86078298 | M100: 0.2175456533
K101: 0.98 | L101: =$D$9/K101 -> 17.67853009 | M101: 0.2153257997
K102: 0.99 | L102: =$D$9/K102 -> 17.49995908 | M102: 0.2131507917
K103: 1 | L103: =$D$9/K103 -> 17.32495949 | M103: 0.2110192837
